bitfinex/quotes_BTCUSD_20240811
["timestamp","ask_amount","ask_price","bid_price","bid_amount"]
[1723377978819,0.000832,60691.0,60690.0,0.90889732]
[1723377979019,0.001832,60691.0,60690.0,0.83689732]
[1723377979252,0.002832,60691.0,60690.0,1.06757732]
[1723377979645,0.001832,60691.0,60690.0,1.14757732]
[1723377979994,0.002832,60691.0,60690.0,1.15557732]
[1723377980221,0.002832,60691.0,60690.0,1.14757732]
[1723377980222,0.001832,60691.0,60690.0,1.14757732]
[1723377980344,0.001832,60691.0,60690.0,1.15557732]
[1723377980564,0.002832,60691.0,60690.0,1.15557732]
[1723377980750,0.002832,60691.0,60690.0,1.14757732]
[1723377980951,0.003832,60691.0,60690.0,0.7610824]
[1723377981136,0.003832,60691.0,60690.0,0.6730824]
[1723377981948,0.002832,60691.0,60690.0,0.6650824]
[1723377982363,0.003832,60691.0,60690.0,0.6710824]
[1723377982574,0.003832,60691.0,60690.0,0.1386224]
[1723377983006,0.003832,60691.0,60690.0,0.3693024]
[1723377983215,0.002832,60691.0,60690.0,0.3633024]
[1723377983419,0.000832,60691.0,60690.0,0.0092824]
[1723377983627,0.07106219,60691.0,60690.0,0.0232824]
[1723377983842,0.07106219,60691.0,60690.0,0.014]
[1723377984075,0.07106219,60691.0,60690.0,0.01510799]
[1723377984277,0.07406219,60691.0,60690.0,0.01510799]
[1723377984487,0.07000637,60691.0,60690.0,0.12134]
[1723377984697,0.001832,60691.0,60690.0,0.13044799]
[1723377984902,0.001832,60691.0,60690.0,0.12444799]
[1723377984903,0.003832,60691.0,60690.0,0.12444799]
[1723377985095,0.07202343,60691.0,60690.0,0.00910799]
[1723377985310,0.07702343,60691.0,60690.0,0.00910799]
[1723377985627,1.07690522,60691.0,60690.0,0.00910799]
[1723377985814,0.115359,60680.0,60676.0,0.115366]
[1723377986026,0.06819143,60679.0,60676.0,0.115366]
[1723377986232,0.06819143,60679.0,60673.0,0.0009152]
[1723377986233,0.273563,60678.0,60673.0,0.1162862]
[1723377986436,0.1582,60678.0,60675.0,0.2316502]
[1723377987039,0.1582,60678.0,60676.0,0.001]
[1723377987266,0.1582,60678.0,60677.0,0.115364]
[1723377987790,0.1652,60678.0,60677.0,0.115364]
[1723377987991,0.087,60678.0,60677.0,0.576822]
[1723377988201,0.0712,60686.0,60676.0,0.0703]
[1723377988202,0.012,60680.0,60676.0,0.0703]
[1723377988407,0.007,60678.0,60677.0,0.115364]
[1723377988602,0.007,60678.0,60677.0,0.346093]
[1723377989261,0.016,60678.0,60677.0,0.346093]
[1723377989878,0.016,60678.0,60677.0,0.576822]
[1723377990110,0.007,60678.0,60677.0,0.576822]
[1723377990334,0.087,60684.0,60683.0,0.115353]
[1723377990552,0.15542041,60684.0,60683.0,0.115353]
[1723377990753,0.15542041,60684.0,60682.0,0.115354]
[1723377990920,0.087,60684.0,60683.0,0.115353]
[1723377991126,0.15542056,60684.0,60683.0,0.115353]
[1723377991569,0.15542609,60684.0,60683.0,0.115353]
[1723377991775,0.16442609,60684.0,60683.0,0.115353]
[1723377991974,0.16442609,60684.0,60683.0,0.34606]
[1723377992325,0.07742609,60684.0,60683.0,0.115353]
[1723377992502,0.07742609,60684.0,60683.0,0.34606]
[1723377992917,0.08842609,60684.0,60683.0,0.34606]
[1723377993347,0.07742609,60684.0,60683.0,0.34606]
[1723377993547,0.06842609,60684.0,60683.0,0.34606]
[1723377993744,0.07642609,60684.0,60683.0,0.34606]
[1723377994265,0.08242609,60684.0,60683.0,0.34706]
[1723377995016,0.08241931,60684.0,60683.0,0.35472752]
[1723377995282,0.08241078,60684.0,60683.0,0.12402052]
[1723377995507,0.19776178,60684.0,60683.0,0.00866752]
[1723377995736,0.37648763,60684.0,60683.0,0.00866752]
[1723377995969,0.60719063,60684.0,60683.0,0.001]
[1723377996194,0.37648763,60684.0,60683.0,0.001]
[1723377996649,0.37648763,60684.0,60683.0,0.00866752]
[1723377997574,0.90909363,60684.0,60683.0,0.00866752]
[1723377997816,1.04595973,60684.0,60683.0,0.00866752]
[1723377998040,1.45047765,60684.0,60683.0,0.001]
[1723377998260,1.55047765,60684.0,60683.0,0.001]
[1723377998485,1.54617757,60684.0,60683.0,0.001]
[1723377998707,1.55617757,60684.0,60683.0,0.001]
[1723377999180,1.55546322,60684.0,60683.0,0.001]
[1723378000148,1.60451362,60684.0,60683.0,0.001]
[1723378000605,1.55546322,60684.0,60683.0,0.001]
[1723378000798,1.60451362,60684.0,60683.0,0.001]
[1723378001009,1.55546322,60684.0,60683.0,0.001]
[1723378001414,1.54546322,60684.0,60683.0,0.001]
[1723378001801,1.55546322,60684.0,60683.0,0.0019141]
[1723378004831,1.56546322,60684.0,60683.0,0.0019141]
[1723378005040,1.67327319,60684.0,60683.0,0.0019141]
[1723378005260,1.72232332,60684.0,60683.0,0.0019141]
[1723378005472,1.72231758,60684.0,60683.0,0.0019141]
[1723378006738,1.67327319,60684.0,60683.0,0.0019141]
[1723378007142,1.87824546,60684.0,60683.0,0.0019141]
[1723378007557,1.85653853,60684.0,60683.0,0.0019141]
[1723378007760,1.87817228,60684.0,60683.0,0.0019141]
[1723378007977,1.53904122,60684.0,60683.0,0.0019141]
[1723378008189,1.83731056,60684.0,60683.0,0.0019141]
[1723378008670,1.87633937,60684.0,60683.0,0.0019141]
[1723378008902,1.64849593,60684.0,60683.0,0.0019141]
[1723378009300,1.80506777,60684.0,60683.0,0.0019141]
[1723378009703,1.80508501,60684.0,60683.0,0.0019141]
[1723378010123,1.80508415,60684.0,60683.0,0.0019141]
[1723378010261,1.97838415,60684.0,60683.0,0.0019141]
[1723378010462,1.80508415,60684.0,60683.0,0.0019141]
[1723378012097,1.79508415,60684.0,60683.0,0.0019141]
[1723378012510,1.80508415,60684.0,60683.0,0.0019141]
[1723378012911,1.87265138,60684.0,60683.0,0.0019141]
[1723378013154,1.90565138,60684.0,60683.0,0.0019141]
[1723378013368,2.02322648,60684.0,60683.0,0.0019141]
[1723378014076,2.00322648,60684.0,60683.0,0.0019141]
[1723378014714,2.01322648,60684.0,60683.0,0.0019141]
[1723378014848,2.00322648,60684.0,60683.0,0.0019141]
[1723378015049,2.07851749,60684.0,60683.0,0.0019141]
[1723378015253,2.09851749,60684.0,60683.0,0.0019141]
[1723378017027,2.09634217,60684.0,60683.0,0.0019141]
[1723378017483,2.07634217,60684.0,60683.0,0.0019141]
[1723378018040,2.06634217,60684.0,60683.0,0.0019141]
[1723378018718,2.07634217,60684.0,60683.0,0.0019141]
[1723378019578,2.05334217,60684.0,60683.0,0.0019141]
[1723378019821,1.74143917,60684.0,60683.0,0.0019141]
[1723378020063,1.62386041,60684.0,60683.0,0.0019141]
[1723378020377,1.56627958,60684.0,60683.0,0.0019141]
[1723378020598,1.62766306,60684.0,60683.0,0.0019141]
[1723378021038,1.0269098,60684.0,60683.0,0.0019141]
[1723378021256,1.47071381,60684.0,60683.0,0.0019141]
[1723378021429,1.98549383,60684.0,60683.0,0.0019141]
[1723378021634,2.62779383,60684.0,60683.0,0.0019141]
[1723378021838,2.09779383,60684.0,60683.0,0.0019141]
[1723378022039,2.08779383,60684.0,60683.0,0.0019141]
[1723378022830,2.09019046,60684.0,60683.0,0.0019141]
[1723378023031,1.3699128,60684.0,60683.0,0.0019141]
[1723378023229,2.08293315,60684.0,60683.0,0.0019141]
[1723378023437,2.07694337,60684.0,60683.0,0.0009141]
[1723378023636,2.09094337,60684.0,60683.0,0.0009141]
[1723378023846,2.10494337,60684.0,60683.0,0.0009141]
[1723378024048,2.11494337,60684.0,60683.0,0.0009141]
[1723378025585,2.26235331,60684.0,60683.0,0.0009141]
[1723378025810,1.84535031,60684.0,60683.0,0.0009141]
[1723378025942,2.05305331,60684.0,60683.0,0.0009141]
[1723378026353,2.06305331,60684.0,60683.0,0.0009141]
[1723378026566,2.06445501,60684.0,60683.0,0.0009141]
[1723378026983,2.05445501,60684.0,60683.0,0.0009141]
[1723378028171,2.14555501,60684.0,60683.0,0.0009141]
[1723378028440,1.99814507,60684.0,60683.0,0.0009141]
[1723378029138,2.10354507,60684.0,60683.0,0.0009141]
[1723378029339,2.50839777,60684.0,60683.0,0.0009141]
[1723378029743,2.34424807,60684.0,60683.0,0.0009141]
[1723378030153,2.34668679,60684.0,60683.0,0.0009141]
[1723378030737,2.34716674,60684.0,60683.0,0.0009141]
[1723378032024,2.34026782,60684.0,60683.0,0.0009141]
[1723378033597,1.6218158,60684.0,60683.0,0.0009141]
[1723378033761,2.3366816,60684.0,60683.0,0.0009141]
[1723378035559,1.159398,60676.0,60675.0,2e-07]
[1723378035764,1.159398,60676.0,60671.0,0.0001]
[1723378035765,0.67927,60672.0,60671.0,0.0001]
[1723378035966,0.67927,60672.0,60659.0,0.49107874]
[1723378035967,1.001226,60664.0,60659.0,0.49107874]
[1723378036171,1.89988888,60664.0,60659.0,0.49107874]
[1723378036374,1.89988888,60664.0,60651.0,0.068]
[1723378036375,2.30897673,60664.0,60651.0,0.068]
[1723378036747,2.29897673,60664.0,60651.0,0.068]
[1723378037075,1.59411093,60664.0,60651.0,0.068]
[1723378037369,2.28335497,60664.0,60651.0,0.068]
[1723378037547,2.31135497,60664.0,60651.0,0.068]
[1723378037946,2.31135497,60664.0,60651.0,0.0001]
[1723378038148,2.30135497,60664.0,60651.0,0.0001]
[1723378038586,2.44851184,60664.0,60651.0,0.0001]
[1723378038774,2.30135497,60664.0,60651.0,0.0001]
[1723378038950,2.4485008,60664.0,60651.0,0.0001]
[1723378039148,2.41829239,60664.0,60651.0,0.0001]
[1723378039537,2.56538992,60664.0,60651.0,0.0001]
[1723378039731,2.57548531,60664.0,60651.0,0.0001]
[1723378040332,2.42838778,60664.0,60651.0,0.0001]
[1723378040557,2.42654785,60664.0,60651.0,0.0001]
[1723378040962,2.43654785,60664.0,60651.0,0.0001]
[1723378041197,2.11041853,60664.0,60651.0,0.0001]
[1723378041415,2.42185743,60664.0,60651.0,0.0001]
[1723378042554,0.03,60652.0,60651.0,0.0001]
[1723378042775,0.03,60652.0,60644.0,0.009141]
[1723378042776,0.766327,60645.0,60644.0,0.009141]
[1723378042957,1.74404097,60645.0,60644.0,0.009141]
[1723378043125,0.607147,60643.0,60642.0,0.009141]
[1723378043334,0.607147,60643.0,60640.0,0.009141]
[1723378043335,0.135433,60641.0,60640.0,0.009141]
[1723378043490,1.72662386,60641.0,60640.0,0.009141]
[1723378043706,0.457305,60640.0,60639.0,0.009141]
[1723378043912,1.32167874,60640.0,60639.0,0.009141]
[1723378044113,1.86105316,60640.0,60639.0,0.009141]
[1723378044332,2.0241086,60640.0,60639.0,0.009141]
[1723378044530,1.92962439,60640.0,60639.0,0.009141]
[1723378044746,1.83437902,60640.0,60639.0,0.009141]
[1723378044954,1.3930118,60640.0,60639.0,0.009141]
[1723378045159,1.39299829,60640.0,60639.0,0.009141]
[1723378045384,1.25602134,60640.0,60639.0,0.009141]
[1723378046046,0.8262089,60640.0,60639.0,0.009141]
[1723378046592,0.82935308,60640.0,60639.0,0.009141]
[1723378047026,0.1684804,60640.0,60639.0,0.009141]
[1723378047175,0.014,60640.0,60639.0,0.279778]
[1723378047382,0.014,60640.0,60639.0,0.99790434]
[1723378047598,0.028,60640.0,60639.0,1.23888377]
[1723378048046,0.028,60640.0,60639.0,1.22877834]
[1723378048259,0.014,60640.0,60639.0,1.2254802]
[1723378048649,0.016,60640.0,60639.0,1.2254802]
[1723378048912,0.002,60640.0,60639.0,1.2254802]
[1723378049064,0.016,60640.0,60639.0,1.2254802]
[1723378049668,0.002,60640.0,60639.0,1.2254802]
[1723378049955,0.230807,60657.0,60650.0,0.0855]
[1723378050161,0.06846747,60656.0,60652.0,0.230824]
[1723378050367,0.115401,60658.0,60654.0,0.115407]
[1723378050568,0.06846466,60657.0,60655.0,0.115406]
[1723378050953,0.230799,60659.0,60656.0,0.0855]
[1723378051131,0.06846233,60658.0,60656.0,0.0855]
[1723378051345,0.230784,60663.0,60657.0,0.00814477]
[1723378051346,0.115396,60661.0,60657.0,0.00814477]
[1723378051667,0.1977095,60660.0,60657.0,0.00814477]
[1723378051879,0.06846233,60659.0,60657.0,0.00814477]
[1723378052084,0.18386133,60659.0,60657.0,0.00814477]
[1723378052297,0.41466533,60658.0,60657.0,0.00814477]
[1723378052714,0.64546733,60658.0,60657.0,0.00814477]
[1723378052930,0.7250967,60658.0,60657.0,0.00814477]
[1723378053101,0.7250967,60658.0,60652.0,0.0855]
[1723378053102,0.115409,60654.0,60652.0,0.0855]
[1723378053510,0.115409,60654.0,60653.0,0.0081492]
[1723378054295,0.126409,60654.0,60653.0,0.0081492]
[1723378054654,0.126409,60654.0,60652.0,0.0855]
[1723378054862,0.126409,60654.0,60653.0,0.0081492]
[1723378055036,0.1948732,60654.0,60653.0,0.0081492]
[1723378055234,0.2038732,60654.0,60653.0,0.0081492]
[1723378055434,0.0884642,60654.0,60652.0,0.0855]
[1723378055640,0.124409,60654.0,60653.0,0.0081492]
[1723378055837,0.19287297,60654.0,60653.0,0.0081492]
[1723378056050,0.20387297,60654.0,60653.0,0.0081492]
[1723378056200,0.11541,60653.0,60652.0,0.0855]
[1723378056573,0.11541,60653.0,60652.0,0.09360914]
[1723378056777,0.18387409,60653.0,60652.0,0.09360914]
[1723378057565,0.19387409,60653.0,60652.0,0.09360914]
[1723378057769,0.42469509,60653.0,60652.0,0.00810914]
[1723378057974,0.65551609,60653.0,60652.0,0.00810914]
[1723378058153,0.346237,60652.0,60651.0,0.0697]
[1723378058349,0.346242,60651.0,60650.0,0.0009141]
[1723378058548,0.73112043,60651.0,60650.0,0.0009141]
[1723378058773,0.86806718,60651.0,60650.0,0.00902545]
[1723378058980,0.73112043,60651.0,60650.0,0.0009141]
[1723378059153,0.50029243,60651.0,60650.0,0.0009141]
[1723378059611,0.50029243,60651.0,60650.0,0.00902802]
[1723378059782,0.73112043,60651.0,60650.0,0.0009141]
[1723378060214,0.73812043,60651.0,60650.0,0.0009141]
[1723378060451,0.74412043,60651.0,60650.0,0.0009141]
[1723378061088,0.73812043,60651.0,60650.0,0.0009141]
[1723378061517,0.74812043,60651.0,60650.0,0.0009141]
[1723378061722,0.73112043,60651.0,60650.0,0.0009141]
[1723378061919,0.73112576,60651.0,60650.0,0.0009141]
[1723378062118,0.75412576,60651.0,60650.0,0.0009141]
[1723378062574,0.6565393,60651.0,60650.0,0.0009141]
[1723378062913,0.74314916,60651.0,60650.0,0.0009141]
[1723378063305,0.88008804,60651.0,60650.0,0.0009141]
[1723378063478,0.89208804,60651.0,60650.0,0.0009141]
[1723378063865,0.88108804,60651.0,60650.0,0.0009141]
[1723378064070,1.04490296,60651.0,60650.0,0.0009141]
[1723378064277,1.05490296,60651.0,60650.0,0.0009141]
[1723378064471,1.04490296,60651.0,60650.0,0.0009141]
[1723378064904,1.04390296,60651.0,60650.0,0.0009141]
[1723378065106,1.03290296,60651.0,60650.0,0.0009141]
[1723378065315,1.04590296,60651.0,60650.0,0.0009141]
[1723378065516,1.05590248,60651.0,60650.0,0.0009141]
[1723378065836,1.04290248,60651.0,60650.0,0.0009141]
[1723378066010,1.05490248,60651.0,60650.0,0.0009141]
[1723378066781,1.04490248,60651.0,60650.0,0.0009141]
[1723378067115,1.05590248,60651.0,60650.0,0.0009141]
[1723378067324,0.30401756,60651.0,60650.0,0.0009141]
[1723378067676,0.30401756,60651.0,60650.0,0.2047301]
[1723378067821,0.16507916,60651.0,60650.0,0.2047301]
[1723378068040,0.15507916,60651.0,60650.0,0.0893141]
[1723378068207,0.16907916,60651.0,60650.0,0.09743809]
[1723378068415,0.18007916,60651.0,60650.0,0.09743809]
[1723378068631,0.16907916,60651.0,60650.0,0.09743809]
[1723378068981,0.15507916,60651.0,60650.0,0.09743809]
[1723378069179,0.17361353,60651.0,60650.0,0.21285409]
[1723378069493,0.17361353,60651.0,60650.0,0.44368609]
[1723378069669,0.08046509,60651.0,60650.0,0.51728609]
[1723378069897,0.08046509,60651.0,60650.0,0.28645409]
[1723378070077,0.09046509,60651.0,60650.0,0.28645409]
[1723378070661,0.022,60651.0,60650.0,1.14606242]
[1723378071063,0.022,60651.0,60650.0,1.37689442]
[1723378071848,0.000832,60655.0,60654.0,0.969859]
[1723378072051,0.000832,60655.0,60654.0,1.13367392]
[1723378072250,0.000832,60655.0,60654.0,1.37259735]
[1723378073851,0.001832,60655.0,60654.0,1.37459735]
[1723378074056,0.000832,60655.0,60654.0,1.37259735]
[1723378074310,0.001832,60655.0,60654.0,1.37459735]
[1723378074441,0.002832,60655.0,60654.0,1.37759735]
[1723378074639,0.000832,60655.0,60654.0,1.37259735]
[1723378075041,0.001832,60655.0,60654.0,1.37759735]
[1723378075484,0.001832,60655.0,60654.0,1.37559735]
[1723378075888,0.002832,60655.0,60654.0,1.37759735]
[1723378076468,0.001832,60655.0,60654.0,1.37459735]
[1723378076660,0.001832,60655.0,60654.0,1.37659735]
[1723378076661,0.002832,60655.0,60654.0,1.37659735]
[1723378076946,0.001832,60655.0,60654.0,1.37459735]
[1723378077140,0.000832,60655.0,60654.0,1.37259735]
[1723378077293,0.001832,60655.0,60654.0,1.37559735]
[1723378077498,0.002832,60655.0,60654.0,1.37559735]
[1723378078141,0.001832,60655.0,60654.0,1.37359735]
[1723378078355,0.001832,60655.0,60654.0,1.37559735]
[1723378078643,0.001832,60655.0,60654.0,1.37459735]
[1723378079001,0.002832,60655.0,60654.0,1.37559735]
[1723378079662,0.002832,60655.0,60654.0,1.37359735]
[1723378079841,0.001832,60655.0,60654.0,1.37359735]
[1723378080049,0.002832,60655.0,60654.0,1.37559735]
[1723378080277,0.001832,60655.0,60654.0,1.37459735]
[1723378080471,0.001832,60655.0,60654.0,1.14378035]
[1723378080689,0.002832,60655.0,60654.0,1.14478035]
[1723378081268,0.000832,60655.0,60654.0,1.14178035]
[1723378081678,0.002832,60655.0,60654.0,1.14478035]
[1723378082056,0.001832,60655.0,60654.0,1.14378035]
[1723378082260,0.001832,60655.0,60654.0,1.38459735]
[1723378082463,0.000831,60684.0,60681.0,0.303914]
[1723378082663,0.000831,60684.0,60683.0,0.115353]
[1723378082908,0.000831,60684.0,60683.0,0.34606]
[1723378083108,0.000831,60684.0,60683.0,0.58802023]
[1723378083959,0.003831,60684.0,60683.0,0.58802023]
[1723378084185,0.000831,60684.0,60683.0,0.58802023]
[1723378084392,0.001831,60684.0,60683.0,0.58802023]
[1723378084605,0.007831,60684.0,60683.0,0.58472475]
[1723378084811,0.000831,60684.0,60683.0,0.58472475]
[1723378085217,0.005831,60684.0,60683.0,0.58472475]
[1723378085435,0.005831,60684.0,60683.0,0.89727821]
[1723378085634,0.005831,60684.0,60683.0,0.81543175]
[1723378086060,0.005831,60684.0,60683.0,0.58472475]
[1723378086266,0.009831,60684.0,60683.0,0.58472475]
[1723378086465,0.000831,60684.0,60683.0,0.58472475]
[1723378086715,0.000831,60684.0,60683.0,0.12331075]
[1723378086927,0.001831,60684.0,60683.0,0.12631075]
[1723378087144,0.001831,60684.0,60683.0,0.01095775]
[1723378087346,0.116182,60684.0,60683.0,0.01095775]
[1723378087555,0.000831,60684.0,60683.0,0.01095775]
[1723378087740,0.006831,60684.0,60683.0,0.12731075]
[1723378087974,0.006831,60684.0,60683.0,0.01195775]
[1723378088172,0.116182,60684.0,60683.0,0.01095775]
[1723378088599,0.240534,60684.0,60683.0,0.01195775]
[1723378088721,0.355885,60684.0,60683.0,0.01195775]
[1723378089117,0.355885,60684.0,60683.0,0.004]
[1723378089118,1.218738,60684.0,60683.0,0.004]
[1723378089252,1.231738,60684.0,60683.0,0.004]
[1723378089455,1.56987884,60684.0,60683.0,0.004]
[1723378089658,1.88238412,60684.0,60683.0,0.003]
[1723378089865,0.0854,60672.0,60663.0,0.60646874]
[1723378090069,0.115384,60667.0,60663.0,0.49107874]
[1723378090269,0.115386,60666.0,60664.0,0.00791582]
[1723378090494,0.1592,60665.0,60655.0,0.230813]
[1723378090669,0.115394,60662.0,60658.0,0.1154]
[1723378091064,0.115394,60662.0,60659.0,0.00792135]
[1723378091418,0.23078,60664.0,60659.0,0.00792135]
[1723378091698,0.115389,60664.0,60659.0,0.12331935]
[1723378091907,0.288588,60665.0,60659.0,0.115397]
[1723378092118,0.11539,60664.0,60660.0,0.00792024]
[1723378092540,0.11539,60664.0,60660.0,0.12331724]
[1723378092944,0.003,60662.0,60660.0,0.00792024]
[1723378093142,0.230754,60671.0,60662.0,0.0938]
[1723378093143,0.0854,60671.0,60662.0,0.0938]
[1723378093352,0.0854,60676.0,60670.0,0.115377]
[1723378093565,0.0854,60676.0,60667.0,0.230765]
[1723378093566,0.11537,60674.0,60669.0,0.115378]
[1723378093785,0.0854,60676.0,60671.0,0.00791067]
[1723378094013,0.06770555,60675.0,60671.0,0.0938]
[1723378094250,0.304519,60680.0,60672.0,0.230748]
[1723378094251,0.230719,60680.0,60672.0,0.230748]
[1723378094441,0.15062663,60679.0,60674.0,0.11537]
[1723378094652,0.15062663,60679.0,60672.0,0.23865757]
[1723378094653,0.15062663,60678.0,60673.0,0.115372]
[1723378094852,0.230719,60680.0,60670.0,0.230755]
[1723378094853,0.06755331,60677.0,60675.0,0.00790625]
[1723378095065,0.06755331,60677.0,60666.0,0.230769]
[1723378095066,0.115368,60675.0,60674.0,0.00790735]
[1723378095250,0.38369031,60675.0,60669.0,0.115379]
[1723378095456,0.115373,60673.0,60669.0,0.115379]
[1723378095895,0.115373,60673.0,60669.0,0.116379]
[1723378096105,0.115373,60673.0,60669.0,0.115379]
[1723378096660,0.1592,60675.0,60666.0,0.230769]
[1723378096886,0.18292535,60674.0,60670.0,0.115376]
[1723378097126,0.06755435,60673.0,60670.0,0.115376]
[1723378097257,0.07955435,60673.0,60671.0,0.115375]
[1723378097456,0.06755435,60672.0,60671.0,0.115375]
[1723378097687,0.06755435,60672.0,60669.0,0.116378]
[1723378097859,0.06755435,60672.0,60669.0,0.001]
[1723378098068,0.18292935,60672.0,60669.0,0.001]
[1723378098270,0.06755435,60671.0,60669.0,0.001]
[1723378098471,0.115378,60670.0,60669.0,0.001]
[1723378098668,0.18293235,60670.0,60669.0,0.001]
[1723378098847,0.18293235,60670.0,60666.0,0.115385]
[1723378099088,0.06755435,60669.0,60666.0,0.115385]
[1723378099515,0.18293435,60669.0,60664.0,0.115388]
[1723378099765,0.06755435,60668.0,60665.0,0.115387]
[1723378099977,0.06755435,60668.0,60665.0,0.12330431]
[1723378100498,0.06755435,60668.0,60666.0,0.001]
[1723378100700,0.06755435,60668.0,60665.0,0.12330431]
[1723378100899,0.06755435,60668.0,60667.0,0.0079151]
[1723378101062,0.07355435,60668.0,60667.0,0.0079151]
[1723378101273,0.07355435,60668.0,60667.0,0.43995]
[1723378101477,0.115365,60677.0,60668.0,0.23076]
[1723378101643,0.115369,60675.0,60671.0,0.115375]
[1723378101840,0.115369,60675.0,60669.0,0.23867289]
[1723378102044,0.115369,60675.0,60672.0,0.00790957]
[1723378102045,0.07540458,60674.0,60672.0,0.00790957]
[1723378102247,0.07540458,60674.0,60670.0,0.115378]
[1723378102514,0.07540458,60674.0,60673.0,0.00790846]
[1723378102870,0.14271913,60674.0,60671.0,0.115376]
[1723378103084,0.116201,60675.0,60673.0,0.00788248]
[1723378103287,0.012,60674.0,60672.0,0.00888359]
[1723378103562,0.012,60674.0,60672.0,0.001]
[1723378103731,0.07291769,60673.0,60669.0,0.230757]
[1723378103944,0.07291769,60673.0,60670.0,0.115377]
[1723378104184,0.07291769,60673.0,60672.0,0.115374]
[1723378104602,0.07291769,60674.0,60673.0,0.115372]
[1723378104806,0.07291769,60674.0,60673.0,0.421017]
[1723378104945,0.014831,60675.0,60674.0,0.11537]
[1723378105347,0.014831,60675.0,60674.0,0.346111]
[1723378105961,0.000831,60675.0,60674.0,0.346111]
[1723378106156,0.013831,60675.0,60674.0,0.347111]
[1723378106617,0.08708836,60675.0,60674.0,0.347111]
[1723378106789,0.15576921,60675.0,60674.0,0.347111]
[1723378107219,0.09514755,60675.0,60674.0,0.347111]
[1723378107389,0.16976871,60675.0,60674.0,0.347111]
[1723378107807,0.16784279,60675.0,60674.0,0.347111]
[1723378108207,0.09512028,60675.0,60674.0,0.577852]
[1723378108627,0.027831,60675.0,60674.0,0.347111]
[1723378108884,0.027831,60675.0,60674.0,0.001]
[1723378109066,0.06820253,60675.0,60672.0,0.115374]
[1723378109302,0.06820253,60675.0,60674.0,0.001]
[1723378109303,0.007831,60675.0,60674.0,0.001]
[1723378109501,0.014831,60675.0,60674.0,0.001]
[1723378109718,0.0822025,60675.0,60674.0,0.001]
[1723378110040,0.0752025,60675.0,60674.0,0.001]
[1723378110396,0.0822025,60675.0,60674.0,0.11637]
[1723378111148,0.0752025,60675.0,60674.0,0.11637]
[1723378112375,0.0822025,60675.0,60674.0,0.11637]
[1723378112777,0.0822025,60675.0,60674.0,0.001]
[1723378113370,1.29307188,60675.0,60674.0,0.001]
[1723378113572,1.95648854,60675.0,60674.0,0.001]
[1723378113772,2.03204248,60675.0,60674.0,0.001]
[1723378113969,2.26277948,60675.0,60674.0,0.001]
[1723378114195,2.27577948,60675.0,60674.0,0.001]
[1723378114421,2.99399829,60675.0,60674.0,0.001]
[1723378115039,3.00403398,60675.0,60674.0,0.001]
[1723378115255,3.00403398,60675.0,60654.0,0.0009141]
[1723378115256,0.115404,60656.0,60654.0,0.0009141]
[1723378115445,0.34452577,60656.0,60654.0,0.0009141]
[1723378115645,0.57533477,60656.0,60654.0,0.0009141]
[1723378116882,0.58033477,60656.0,60654.0,0.0009141]
[1723378117086,0.58333477,60656.0,60654.0,0.0009141]
[1723378117495,0.72025991,60656.0,60654.0,0.0009141]
[1723378117710,0.95106891,60656.0,60654.0,0.0009141]
[1723378117882,1.00026391,60656.0,60654.0,0.0009141]
[1723378118097,0.95106891,60656.0,60654.0,0.0009141]
[1723378118588,0.92904345,60656.0,60654.0,0.0009141]
[1723378118789,1.00164796,60656.0,60654.0,0.0009141]
[1723378119534,0.9524516,60656.0,60654.0,0.0009141]
[1723378119918,0.6314426,60656.0,60655.0,0.0758141]
[1723378120115,0.14829958,60656.0,60655.0,0.0758141]
[1723378120524,0.14829958,60656.0,60655.0,0.08329314]
[1723378121412,0.15751654,60656.0,60655.0,0.08329314]
[1723378121559,0.15751654,60656.0,60655.0,0.19869914]
[1723378121775,0.07582294,60656.0,60655.0,0.19869914]
[1723378121983,0.07582294,60656.0,60655.0,0.42951214]
[1723378122163,0.008,60656.0,60655.0,0.42951214]
[1723378123538,0.008,60656.0,60655.0,0.66032514]
[1723378123743,0.008,60656.0,60655.0,0.90564006]
[1723378123918,0.008,60656.0,60655.0,1.13645306]
[1723378128866,0.008,60656.0,60655.0,0.97263814]
[1723378129075,0.008,60656.0,60655.0,0.74182514]
[1723378130263,0.008,60656.0,60655.0,0.90564006]
[1723378131315,0.008,60656.0,60655.0,1.13645306]
[1723378131916,0.005,60656.0,60655.0,1.13645306]
[1723378132135,0.005,60656.0,60655.0,1.13945306]
[1723378132342,0.04922526,60670.0,60665.0,0.115387]
[1723378132548,0.26922169,60669.0,60665.0,0.115387]
[1723378132764,0.26922269,60668.0,60666.0,0.00800538]
[1723378132891,0.15384069,60667.0,60666.0,0.00800538]
[1723378133088,0.15464659,60667.0,60664.0,0.115389]
[1723378133296,0.15464659,60666.0,60665.0,0.115387]
[1723378133703,0.15464659,60666.0,60662.0,0.230784]
[1723378133937,0.08680292,60665.0,60664.0,0.115389]
[1723378134347,0.15464031,60665.0,60664.0,0.346168]
[1723378134570,0.15464031,60665.0,60664.0,0.576947]
[1723378134765,0.06783739,60665.0,60664.0,0.729347]
[1723378135022,0.06785194,60669.0,60667.0,0.230766]
[1723378135248,0.06022526,60670.0,60669.0,0.11538]
[1723378135249,0.011,60670.0,60669.0,0.11538]
[1723378135500,0.16770577,60670.0,60669.0,0.11538]
[1723378135736,0.06785641,60670.0,60669.0,0.11538]
[1723378135985,0.09233547,60670.0,60668.0,0.115381]
[1723378136219,0.16019416,60669.0,60668.0,0.115381]
[1723378136662,0.1597567,60669.0,60668.0,0.115381]
[1723378136885,0.1597567,60669.0,60667.0,0.115383]
[1723378137089,0.1597567,60669.0,60655.0,0.0009141]
[1723378137090,0.47340337,60668.0,60655.0,0.0009141]
[1723378137325,0.115401,60658.0,60655.0,0.0009141]
[1723378137531,0.0882,60656.0,60655.0,0.0009141]
[1723378137723,0.0882,60656.0,60655.0,0.1163201]
[1723378137906,0.17404751,60656.0,60655.0,0.1163201]
[1723378138463,0.17404751,60656.0,60655.0,0.0009141]
[1723378138667,0.52026051,60656.0,60655.0,0.0009141]
[1723378139067,0.434413,60656.0,60655.0,0.0009141]
[1723378139316,0.51864656,60656.0,60655.0,0.0009141]
[1723378139641,0.51864656,60656.0,60655.0,0.0019141]
[1723378139815,0.1723243,60656.0,60655.0,0.12509175]
[1723378140044,0.1763243,60656.0,60655.0,0.00968575]